bitfinex/quotes_ETHUSD_20250215
["timestamp","ask_amount","ask_price","bid_price","bid_amount"]
[1739652699261,5.1808,2680.4,2680.0,0.9001156]
[1739652699496,5.1808,2680.4,2680.1,3.73119]
[1739652699694,5.1808,2680.4,2680.0,4.6314056]
[1739652700273,5.1808,2680.4,2680.1,3.7312]
[1739652701196,5.1808,2680.4,2680.2,3.73102]
[1739652701368,5.1808,2680.4,2680.1,7.4622]
[1739652701568,5.1808,2680.4,2680.1,3.73109]
[1739652702105,5.1808,2680.4,2680.1,4.19421056]
[1739652702267,5.1808,2680.4,2680.3,3.73092]
[1739652702784,5.1808,2680.4,2680.3,4.48582]
[1739652707741,5.1808,2680.8,2680.6,3.73037]
[1739652708808,5.21870637,2680.8,2680.3,3.73084]
[1739652709010,0.7718,2680.7,2680.3,7.46167]
[1739652709303,0.7718,2680.7,2680.3,3.73081]
[1739652709682,0.03790637,2680.6,2680.3,3.73081]
[1739652709883,0.7718,2680.7,2680.3,3.73081]
[1739652710705,0.7718,2680.7,2680.3,7.46165]
[1739652710874,0.7718,2680.7,2680.3,3.73081]
[1739652711269,0.7718,2680.7,2680.4,3.73068]
[1739652712108,5.9526,2680.7,2680.4,3.73068]
[1739652712290,5.9526,2680.7,2680.2,3.73096]
[1739652712490,5.9526,2680.7,2680.3,3.73082]
[1739652712707,5.1808,2680.7,2680.1,0.8208]
[1739652712908,5.1808,2680.7,2680.3,3.73083]
[1739652713607,5.1808,2680.7,2680.3,7.46166]
[1739652713813,5.1808,2680.7,2680.3,3.73083]
[1739652714811,5.1808,2680.7,2680.5,3.73057]
[1739652715316,5.1808,2680.7,2680.6,3.7305]
[1739652717619,5.1808,2680.7,2680.5,0.8208]
[1739652717620,5.1808,2680.7,2680.5,4.55144]
[1739652718317,5.1808,2680.7,2680.5,4.55142]
[1739652718520,5.1808,2680.7,2680.5,8.28199]
[1739652719187,5.1808,2680.7,2680.6,3.7305]
[1739652721527,5.1808,2680.7,2680.6,4.558687]
[1739652721885,3.0322,2681.2,2680.6,4.558687]
[1739652722112,5.1808,2681.3,2681.0,3.72994]
[1739652722317,0.83210637,2681.2,2680.9,3.73006]
[1739652723007,0.7942,2681.2,2681.0,3.72995]
[1739652723517,7.4188,2681.3,2681.0,3.72995]
[1739652723721,7.4188,2681.3,2681.2,3.72967]
[1739652723722,5.1808,2681.3,2681.2,3.72967]
[1739652725425,5.1808,2681.3,2681.2,5.257217]
[1739652726597,0.7942,2681.9,2681.6,3.72911]
[1739652726598,5.1808,2681.7,2681.6,3.72911]
[1739652727433,5.1808,2681.7,2681.5,3.72924]
[1739652729032,5.1808,2681.7,2681.5,3.72917]
[1739652729243,5.1808,2681.7,2681.5,3.72916]
[1739652732301,5.1808,2681.7,2681.3,3.72945]
[1739652732508,0.7942,2681.5,2681.3,3.72945]
[1739652733034,5.975,2681.7,2681.3,3.72945]
[1739652733614,6.01290637,2681.7,2681.1,3.72974]
[1739652733815,9.74198637,2681.7,2681.1,3.72969]
[1739652734021,3.72914,2681.6,2681.1,3.72969]
[1739652734226,0.03790637,2681.5,2681.1,3.72969]
[1739652735055,1.01211101,2681.5,2681.0,0.7816]
[1739652735289,4.52367,2681.4,2680.9,3.73002]
[1739652735433,0.7942,2681.4,2680.9,3.73002]
[1739652735629,4.56153637,2681.4,2680.8,3.7301]
[1739652735854,5.1808,2681.3,2680.9,3.73007]
[1739652737445,6.38264942,2681.3,2680.8,3.7301]
[1739652737634,0.03790637,2681.2,2680.8,3.7301]
[1739652737844,5.1808,2681.3,2680.8,3.7301]
[1739652738238,5.1808,2681.3,2681.0,3.72991]
[1739652739357,5.1808,2681.3,2681.1,3.72968]
[1739652739662,5.1808,2681.3,2681.0,3.72987]
[1739652739858,5.1808,2681.3,2681.0,7.45974]
[1739652740022,5.1808,2681.3,2681.0,3.72987]
[1739652740532,5.1808,2681.3,2681.1,3.72976]
[1739652741344,5.1808,2681.3,2681.2,4.51337]
[1739652742529,5.1808,2681.3,2681.1,3.72976]
[1739652743459,5.1808,2681.3,2680.9,7.45997]
[1739652743664,5.1808,2681.3,2681.0,3.72993]
[1739652748885,5.1808,2681.3,2681.2,3.72967]
[1739652749197,5.1808,2681.3,2681.1,3.72979]
[1739652749590,0.8044,2681.2,2680.9,3.72997]
[1739652750164,0.8044,2681.2,2681.0,3.72993]
[1739652752214,0.8044,2681.2,2680.6,3.73041]
[1739652752215,7.96733,2681.2,2680.6,3.73041]
[1739652752416,2.238,2681.1,2680.6,3.73041]
[1739652752579,2.238,2681.1,2680.6,3.7304]
[1739652753499,0.7914,2680.8,2680.4,4.50211]
[1739652753811,6.75965,2680.8,2680.2,4.50236]
[1739652753978,0.03790637,2680.7,2680.3,3.73087]
[1739652754886,3.0294,2680.8,2680.3,3.73087]
[1739652755082,3.0294,2680.8,2680.3,3.73082]
[1739652755585,3.0294,2680.8,2680.4,3.73076]
[1739652756386,0.7914,2681.0,2680.7,3.73029]
[1739652756605,3.0294,2681.0,2680.7,3.73029]
[1739652757115,3.0294,2681.0,2680.7,3.68029]
[1739652757617,2.238,2681.0,2680.8,3.73014]
[1739652757779,2.238,2681.1,2680.6,4.50183]
[1739652758110,2.238,2681.1,2680.6,4.50179]
[1739652758325,2.238,2681.1,2680.7,3.73034]
[1739652758688,2.238,2681.1,2680.8,3.73022]
[1739652759325,3.0294,2681.4,2681.0,3.72995]
[1739652759492,0.675874,2681.3,2680.9,3.73006]
[1739652759681,3.0294,2681.4,2680.9,3.73006]
[1739652760278,3.0294,2681.4,2681.1,3.72976]
[1739652760721,3.0294,2681.4,2681.1,3.72973]
[1739652761284,3.0294,2681.6,2681.3,3.72951]
[1739652761643,5.1808,2681.5,2681.3,3.72951]
[1739652762421,5.1808,2681.5,2681.3,3.72946]
[1739652762626,5.1808,2681.5,2681.3,3.72943]
[1739652762785,5.1808,2681.5,2681.4,3.72939]
[1739652763439,5.1808,2681.5,2681.3,3.72943]
[1739652763990,5.9722,2681.8,2681.4,3.72932]
[1739652764211,5.9722,2681.8,2681.3,3.72943]
[1739652764721,0.82930637,2681.7,2681.1,3.72973]
[1739652764927,5.96711,2681.6,2681.1,3.72973]
[1739652765127,2.238,2681.6,2681.1,3.72973]
[1739652765450,5.96719,2681.6,2681.1,3.72973]
[1739652765948,5.96719,2681.6,2681.0,0.7714]
[1739652766116,4.4279151,2681.5,2681.0,4.50132]
[1739652768546,5.1808,2681.4,2681.0,4.50132]
[1739652770256,5.1808,2681.4,2681.0,0.7714]
[1739652770475,5.1808,2681.4,2681.2,3.72962]
[1739652771861,5.1808,2681.4,2681.3,3.72953]
[1739652773249,5.1808,2681.4,2681.1,7.45944]
[1739652773446,5.1808,2681.4,2681.0,0.7714]
[1739652773651,5.1808,2681.4,2681.3,4.49333]
[1739652773835,5.1808,2681.4,2681.3,4.94639281]
[1739652774545,5.1808,2681.8,2681.4,3.7293]
[1739652774758,5.1808,2681.8,2681.4,7.45861]
[1739652774930,5.1808,2681.8,2681.4,3.7293]
[1739652775265,5.1808,2681.8,2681.4,7.45859]
[1739652775629,5.1808,2681.8,2681.4,3.72929]
[1739652776058,5.1808,2681.8,2681.5,3.72925]
[1739652777065,5.1808,2681.8,2681.7,3.72897]
[1739652777767,5.1808,2681.8,2681.7,4.49277]
[1739652778446,5.1808,2681.8,2681.7,0.7638]
[1739652779370,5.1808,2681.8,2681.6,3.72906]
[1739652780051,5.1808,2681.8,2681.7,3.72897]
[1739652780439,5.1808,2681.8,2681.6,3.72906]
[1739652780779,5.1808,2681.8,2681.6,7.45809]
[1739652781067,5.1808,2681.8,2681.7,3.72897]
[1739652784253,5.1808,2681.8,2681.6,3.72908]
[1739652784459,5.1808,2681.8,2681.7,3.72897]
[1739652788941,5.1808,2681.8,2681.7,4.48707]
[1739652790845,3.72891,2681.8,2681.2,0.7487345]
[1739652791075,5.96714,2681.6,2681.0,0.7581]
[1739652791268,0.87060637,2681.5,2680.9,3.73005]
[1739652791669,4.59985637,2681.5,2680.9,3.73005]
[1739652792054,3.72941,2681.4,2680.9,3.73005]
[1739652792269,0.03790637,2681.3,2680.7,12.85838]
[1739652792458,0.8327,2681.2,2680.8,0.74584614]
[1739652792968,0.8327,2681.2,2680.8,3.73013]
[1739652793170,5.1808,2681.8,2681.1,3.72975]
[1739652793374,0.8327,2682.1,2681.7,3.72888]
[1739652793580,0.63869,2682.1,2681.7,3.76616709]
[1739652793783,5.1808,2682.2,2681.7,7.45774]
[1739652793979,5.1808,2682.2,2681.8,3.72881]
[1739652794387,5.1808,2682.2,2681.7,3.72886]
[1739652794688,5.1808,2682.2,2681.8,3.72875]
[1739652795264,5.1808,2682.2,2681.9,3.72865]
[1739652797286,5.21870637,2682.2,2681.7,3.72886]
[1739652797460,0.7675,2682.1,2681.7,3.72886]
[1739652797672,8.22481,2682.0,2681.3,3.72953]
[1739652798004,3.72872,2681.9,2681.3,3.72953]
[1739652798164,5.1808,2681.8,2681.3,3.72953]
[1739652799685,8.94754637,2681.8,2681.2,3.72957]
[1739652799890,9.73492242,2681.8,2681.2,3.72957]
[1739652800062,0.7675,2681.7,2681.2,3.72957]
[1739652800266,0.7675,2681.7,2681.2,7.45915]
[1739652800470,0.7675,2681.7,2681.2,3.72957]
[1739652801180,0.7675,2681.7,2681.2,7.45915]
[1739652801378,0.7675,2681.7,2681.2,3.72955]
[1739652801890,0.7675,2681.7,2681.3,3.72941]
[1739652802272,0.7675,2681.7,2681.2,3.72955]
[1739652802512,5.1808,2681.8,2681.4,3.72929]
[1739652803469,5.1808,2681.8,2681.5,0.03729172]
[1739652803719,5.1808,2681.8,2681.6,3.72904]
[1739652804801,5.1808,2681.8,2681.7,4.56027]
[1739652810142,0.7675,2682.2,2681.8,3.72881]
[1739652811408,0.7675,2682.2,2681.8,3.72876]
[1739652813655,2.107967,2682.2,2681.6,3.72904]
[1739652813806,3.72849,2682.1,2681.6,3.72904]
[1739652814238,7.45701,2682.1,2681.6,3.72904]
[1739652814451,3.72849,2682.1,2681.6,3.72904]
[1739652814594,0.7928,2682.0,2681.6,3.72904]
[1739652816131,10.2884257,2682.0,2681.4,3.72931]
[1739652816328,3.7289,2681.8,2681.2,5.30331431]
[1739652816512,4.55960637,2681.8,2681.2,4.48381431]
[1739652816705,3.72919,2681.6,2681.0,7.4597]
[1739652817003,5.1808,2681.5,2681.0,3.72984]
[1739652817221,5.1808,2681.5,2681.0,7.45971]
[1739652817529,0.7928,2681.4,2681.0,7.45971]
[1739652818152,0.7928,2681.4,2681.0,3.72984]
[1739652818516,0.7928,2681.4,2681.0,7.45971]
[1739652818744,0.7928,2681.4,2681.0,3.72984]
[1739652819831,0.7928,2681.4,2681.1,0.73008436]
[1739652820811,0.7928,2681.4,2681.1,4.45979436]
[1739652822026,5.9736,2681.4,2681.1,4.45979436]
[1739652822424,5.9736,2681.4,2681.0,3.72993]
[1739652822627,6.943874,2681.4,2681.0,3.72993]
[1739652823228,5.9736,2681.4,2681.0,3.72993]
[1739652825043,5.9736,2681.4,2681.0,3.72987]
[1739652826642,5.9736,2681.4,2680.9,3.73009]
[1739652826818,5.9736,2681.4,2681.0,3.72983]
[1739652829244,5.9736,2681.4,2681.0,3.72995]
[1739652829844,5.9736,2681.4,2680.9,3.73009]
[1739652830143,5.9736,2681.4,2681.0,3.72995]
[1739652830441,5.9736,2681.4,2681.0,3.72984]
[1739652831243,5.9736,2681.4,2681.1,3.72976]
[1739652832740,5.9736,2681.4,2681.1,3.72981]
[1739652836731,5.9736,2681.4,2681.1,3.7297]
[1739652837439,5.9736,2681.4,2681.2,3.72967]
[1739652837856,5.9736,2681.4,2681.1,3.72971]
[1739652839388,5.9736,2681.4,2681.2,3.72967]
[1739652839658,5.9736,2681.4,2681.2,3.72957]
[1739652840858,5.9736,2681.4,2681.1,3.72971]
[1739652841231,5.9736,2681.4,2681.1,7.45945]
[1739652842964,5.9736,2681.4,2681.1,3.72971]
[1739652843194,5.9736,2681.4,2681.2,3.72962]
[1739652847265,5.9736,2681.4,2681.3,3.72953]
[1739652847763,5.9736,2681.4,2681.2,3.72966]
[1739652856608,5.9736,2681.4,2681.3,3.72953]
[1739652856805,5.1808,2681.4,2681.3,3.72953]
[1739652857104,5.1808,2681.4,2681.2,3.72966]
[1739652858617,5.1808,2681.4,2681.2,3.72959]
[1739652859632,5.1808,2681.4,2681.3,3.72953]
[1739652860230,5.1808,2681.4,2681.3,6.73855136]
[1739652863145,5.1808,2681.4,2681.3,7.48451662]
[1739652878153,5.1808,2682.4,2681.7,0.8273]
[1739652878340,0.7995,2682.3,2682.0,3.72843]
[1739652878548,1.39753,2682.3,2682.0,3.72843]
[1739652878732,1.39753,2682.3,2681.9,3.72862]
[1739652879123,1.39753,2682.3,2682.0,3.72853]
[1739652879540,1.39753,2682.3,2682.1,3.72834]
[1739652879970,0.7995,2682.3,2682.1,3.72834]
[1739652880171,5.1808,2682.4,2682.3,3.72814]
[1739652881492,0.7995,2682.5,2682.4,3.728]
[1739652884393,0.7995,2682.5,2682.3,3.72813]
[1739652886198,0.7995,2682.5,2682.4,3.728]
[1739652887487,5.9803,2682.5,2682.4,3.728]
[1739652889234,5.1808,2682.5,2682.4,6.0360663]
[1739652890500,5.1808,2682.5,2682.4,6.8041663]
[1739652891828,5.1808,2682.9,2682.8,3.72744]
[1739652892623,5.1808,2682.9,2682.8,4.49554]
[1739652895526,5.1808,2682.9,2682.8,5.23901197]
[1739652895691,5.1808,2682.9,2682.8,6.2777101]
[1739652897182,5.1808,2682.9,2682.8,5.53423813]
[1739652897464,5.1808,2682.9,2682.8,4.76613813]
[1739652898865,5.1808,2682.9,2682.8,1.03869813]
[1739652899065,5.1808,2682.9,2682.7,5.91033846]
[1739652899066,0.7546,2682.8,2682.7,3.72757]
[1739652899758,0.7546,2682.8,2682.5,5.14815936]
[1739652899990,0.7546,2682.8,2682.6,3.72767]
[1739652900688,0.7546,2682.8,2682.4,4.47803257]
[1739652901085,0.7546,2682.8,2682.4,3.72789]
[1739652901396,0.7546,2682.8,2682.5,5.14823936]
[1739652901598,0.7546,2682.8,2682.5,5.14817936]
[1739652901753,0.7546,2682.8,2682.5,5.00845936]
[1739652902168,5.9354,2682.8,2682.5,5.00845936]
[1739652902983,5.9354,2682.8,2682.6,3.7277]
[1739652904595,5.9354,2682.8,2682.5,5.00845936]
[1739652904800,5.1808,2682.8,2682.7,3.72758]
[1739652905604,5.1808,2682.8,2682.7,5.14797936]
[1739652906094,5.1808,2682.8,2682.7,5.97737936]
[1739652908328,5.1808,2683.2,2683.0,3.72712]
[1739652908617,5.1808,2683.2,2683.0,3.72708]
[1739652909512,5.1808,2683.2,2683.0,7.45416]
[1739652909688,5.1808,2683.2,2683.0,3.72708]
[1739652910315,5.1808,2683.2,2683.0,3.72703]
[1739652910620,5.1808,2683.2,2683.1,3.72703]
[1739652912592,5.1808,2683.2,2683.1,4.472436]
[1739652915636,5.1808,2683.2,2683.1,5.301836]
[1739652919992,5.1808,2683.4,2683.1,5.301836]
[1739652920320,5.1808,2683.4,2683.3,3.72675]
[1739652926301,5.1808,2683.7,2683.6,3.72633]
[1739652930146,5.1808,2683.7,2683.5,8.25464]
[1739652930636,5.1808,2683.7,2683.5,4.52818]
[1739652931144,5.1808,2684.4,2684.2,7.45098]
[1739652931306,5.1808,2684.4,2684.3,3.72536]
[1739652931658,5.9425,2684.4,2684.0,4.54365]
[1739652931808,5.9425,2684.4,2684.0,3.72575]
[1739652932206,5.9425,2684.4,2684.2,3.72543]
[1739652932854,5.9425,2684.4,2684.1,1.93154693]
[1739652934024,5.9425,2684.4,2684.1,0.51429972]
[1739652934364,5.9425,2684.4,2684.0,7.45135]
[1739652935240,5.9425,2684.4,2684.1,3.72564]
[1739652935551,5.9425,2684.4,2684.0,7.45134]
[1739652936661,5.9425,2684.4,2684.0,3.72565]
[1739652936854,5.9425,2684.4,2684.0,7.45135]
[1739652937061,5.9425,2684.4,2684.1,2.30410693]
[1739652938463,5.9425,2684.4,2684.2,3.72549]
[1739652938816,5.9425,2684.4,2684.1,2.30410693]
[1739652940149,5.9425,2684.4,2684.1,6.02966693]
[1739652940342,5.9425,2684.4,2684.1,2.30410693]
[1739652941042,5.9425,2684.4,2684.1,3.06711244]
[1739652941845,5.9425,2684.4,2684.1,1.64986523]
[1739652942450,5.1808,2684.4,2684.1,7.61196244]
[1739652942649,5.1808,2684.6,2684.5,4.54438]
[1739652942952,5.1808,2684.6,2684.5,5.96162721]
[1739652943149,5.1808,2684.6,2684.5,1.41724721]
[1739652945081,5.1808,2684.6,2684.3,1.41724721]
[1739652945437,5.1808,2684.6,2684.3,5.14258721]
[1739652945767,5.1808,2684.6,2684.3,6.27862953]
[1739652945996,5.1808,2684.6,2684.3,2.55328953]
[1739652946136,5.1808,2684.6,2684.3,6.27862953]
[1739652946536,5.1808,2684.6,2684.5,1.41724721]
[1739652946775,5.1808,2684.6,2684.3,1.41724721]
[1739652947584,0.7933,2685.0,2684.9,3.72453]
[1739652947748,5.1808,2685.1,2685.0,3.72439]
[1739652947948,0.7933,2685.4,2685.0,5.14163721]
[1739652948153,5.9741,2685.4,2685.0,5.14163721]
[1739652948383,5.9741,2685.4,2685.1,3.72422]
[1739652948673,5.9741,2685.4,2685.1,3.72417]
[1739652948992,5.9741,2685.4,2685.2,3.72404]
[1739652949477,5.9741,2685.4,2685.1,3.72417]
[1739652950137,5.9741,2685.4,2685.2,3.7241]
[1739652950338,5.9741,2685.4,2685.1,3.72417]
[1739652950568,5.9741,2685.4,2685.2,3.72403]
[1739652950869,5.1808,2685.4,2685.2,3.72403]
[1739652951573,5.1808,2685.4,2685.2,7.44805]
[1739652951761,5.1808,2685.4,2685.2,3.72402]
[1739652953790,5.1808,2685.4,2685.3,3.72397]
[1739652955294,5.1808,2685.4,2685.2,3.72402]
[1739652955906,5.1808,2685.4,2685.3,7.32534173]
[1739652956802,5.1808,2685.4,2685.2,4.98411077]
[1739652957012,5.1808,2685.4,2685.0,4.45374296]
[1739652957177,5.9741,2685.4,2685.1,3.72416]
[1739652957580,5.9741,2685.4,2685.0,4.45374296]
[1739652957909,5.9741,2685.4,2685.3,4.49307]
[1739652957910,5.1808,2685.4,2685.3,4.49307]
[1739652958809,5.1808,2685.9,2685.5,3.72369]
[1739652958954,5.1808,2685.9,2685.3,3.72397]
[1739652959160,3.72343,2685.7,2685.2,3.72409]
[1739652959355,0.7933,2685.8,2685.1,4.49328]
[1739652959561,0.7933,2685.8,2685.4,3.72375]
[1739652959861,3.72347,2685.7,2685.1,4.49326]
[1739652960069,3.72347,2685.7,2685.1,5.29875747]
[1739652961094,3.72357,2685.6,2685.1,4.52965747]
[1739652962215,3.72391,2685.4,2684.8,3.72462]
[1739652962378,3.72398,2685.3,2684.8,3.72462]
[1739652962579,3.72398,2685.3,2684.8,4.4833971]
[1739652962996,3.72391,2685.4,2684.7,4.51208]
[1739652963297,0.7783,2685.3,2684.9,3.72448]
[1739652964565,9.6831,2685.3,2684.7,3.72468]
[1739652964777,3.7242,2685.2,2684.7,3.72468]
[1739652966494,8.905,2685.2,2684.5,4.5124]
[1739652966811,0.7783,2684.8,2684.5,3.72508]
[1739652967012,0.7783,2684.8,2684.5,5.37336413]
[1739652967324,0.7783,2684.8,2684.5,1.64828413]
[1739652967518,4.50297,2684.8,2684.3,12.75776127]
[1739652968865,3.76271637,2684.7,2684.3,8.36]
[1739652969207,0.7783,2684.6,2684.3,8.36]
[1739652970672,5.9591,2684.6,2684.3,8.36]
[1739652971549,9.68406,2684.6,2684.3,8.36]
[1739652971850,5.9591,2684.6,2684.3,8.36]
[1739652972918,3.72519,2684.5,2684.3,8.36]
[1739652973261,5.9591,2684.6,2684.3,8.36]
[1739652973772,5.9591,2684.6,2684.2,3.7255]
[1739652974136,5.9591,2684.6,2684.1,3.72563]
[1739652974667,5.9591,2684.6,2684.3,3.72535]
[1739652974883,5.9591,2684.6,2684.1,7.45113]
[1739652975087,5.9591,2684.6,2684.1,8.196243]
[1739652975239,9.68418,2684.6,2684.1,4.470613]
[1739652975878,5.9591,2684.6,2684.1,4.470613]
[1739652976104,5.9591,2684.6,2684.1,7.45107]
[1739652976264,5.9591,2684.6,2684.1,3.7255]
[1739652976468,5.9591,2684.6,2684.1,7.45107]
[1739652977690,5.9591,2684.6,2684.1,3.7255]
[1739652978195,3.72509,2684.5,2684.0,3.72574]
[1739652978353,3.72509,2684.5,2684.0,4.90662731]
[1739652978556,9.68405,2684.6,2684.1,3.7256]
[1739652978766,3.72509,2684.5,2684.0,1.18088731]
[1739652978967,3.72509,2684.5,2684.0,4.90665731]
[1739652979789,3.72509,2684.5,2684.0,1.18088731]
[1739652979949,3.72509,2684.5,2683.9,7.45161]
[1739652980878,3.72545,2684.3,2683.8,0.73763133]
[1739652981080,8.20074,2684.4,2683.9,3.72589]
[1739652981278,4.47544,2684.4,2683.9,7.45178]
[1739652981582,4.47544,2684.4,2684.0,0.03725448]
[1739652982392,0.7502,2684.4,2684.0,0.03725448]
[1739652982691,4.47544,2684.4,2683.9,3.76308348]
[1739652983175,0.7502,2684.4,2684.0,3.72577]
[1739652983777,0.7502,2684.4,2683.9,3.72583]
[1739652983989,0.7502,2684.4,2683.9,3.76308427]
[1739652984186,0.7502,2684.4,2684.2,3.72548]
[1739652984356,0.7502,2684.4,2684.0,0.757]
[1739652984552,0.7502,2684.4,2684.1,3.72561]
[1739652985391,0.7502,2684.4,2684.0,4.48266]
[1739652987592,0.7502,2684.4,2684.0,8.20833]
[1739652987770,0.7502,2684.4,2684.0,5.70549046]
[1739652989392,0.7502,2684.4,2684.1,3.72555]
[1739652989563,0.7502,2684.4,2684.0,9.43119046]
[1739652989941,0.7502,2684.4,2684.1,3.72562]
[1739652990614,0.7502,2684.4,2684.2,3.72538]
[1739652992040,0.7502,2684.4,2684.1,3.7256]
[1739652992218,0.7502,2684.4,2684.0,1.22283046]
[1739652992430,0.7502,2684.4,2683.9,5.14289711]
[1739652992627,4.47544,2684.4,2683.9,3.72584]
[1739652992834,0.7911,2684.3,2683.9,3.72584]
[1739652993028,4.51648,2684.3,2683.8,4.46368133]
[1739652993329,0.7911,2684.3,2683.8,4.46368133]
[1739652993649,0.7911,2684.3,2683.9,3.7258]
[1739652995510,0.7911,2684.3,2684.0,3.7257]
[1739652996027,0.7911,2684.3,2684.1,3.72562]
[1739652996218,0.7911,2684.5,2684.1,7.45118]
[1739652996532,0.7911,2684.5,2684.1,3.72556]
[1739652996731,0.7911,2684.5,2684.1,4.549549]
[1739652997133,3.72524,2684.4,2684.1,0.823989]
[1739652997299,5.1808,2684.4,2684.0,3.72569]
[1739652997502,5.1808,2684.4,2683.8,0.73763133]
[1739652997703,5.1808,2684.4,2684.0,3.72576]
[1739652998518,8.90604,2684.4,2683.9,3.72591]
[1739652999443,8.90604,2684.4,2683.8,4.46358133]
[1739652999646,5.1808,2684.4,2684.0,3.72574]
[1739653001620,8.90612,2684.4,2683.9,3.72585]
[1739653002464,8.90612,2684.4,2683.9,3.72592]
[1739653004331,5.1808,2684.4,2684.0,3.72572]
[1739653004963,5.1808,2684.4,2683.8,0.73763133]
[1739653005170,5.1808,2684.4,2684.0,3.72578]
[1739653005369,5.1808,2684.4,2684.0,4.17212113]
[1739653005964,5.1808,2684.4,2684.1,3.72557]
[1739653006778,5.1808,2684.4,2684.0,4.17212113]
[1739653006931,5.1808,2684.4,2684.0,3.72578]
[1739653007539,5.1808,2684.4,2684.1,3.72561]
[1739653008278,5.1808,2684.4,2684.0,3.72578]
[1739653009468,5.1808,2684.4,2684.0,7.45145]
[1739653010062,5.1808,2684.4,2684.0,3.72567]
[1739653010465,5.1808,2684.4,2684.0,7.45137]
[1739653011762,5.1808,2684.4,2684.0,3.72567]
[1739653018794,8.90609,2684.4,2683.8,5.88084989]
[1739653019096,0.7514,2684.3,2683.8,4.46358133]
[1739653019543,0.7514,2684.3,2683.9,3.72583]
[1739653019950,0.7514,2684.3,2684.0,3.72577]
[1739653020550,0.7514,2684.3,2683.9,3.72591]
[1739653021246,5.9322,2684.3,2683.9,3.72591]
[1739653022587,5.9322,2684.3,2684.0,3.72576]
[1739653022785,5.9322,2684.3,2683.9,3.72591]
[1739653022990,5.9322,2684.3,2683.9,4.68660099]
[1739653028578,5.9322,2684.3,2683.9,4.63660099]
[1739653030393,5.9322,2684.3,2683.9,3.67591]
[1739653032802,5.9322,2684.3,2683.9,3.7258]
[1739653036084,5.9322,2684.3,2684.0,3.7257]
[1739653041382,5.9322,2684.3,2684.0,3.72566]
[1739653041801,5.9322,2684.3,2683.8,2.15489989]
[1739653042002,5.9322,2684.3,2683.9,3.72578]
[1739653042578,5.9322,2684.3,2684.0,1.45452308]
[1739653042790,5.1808,2684.3,2684.2,3.7255]
[1739653043894,3.72468,2684.8,2684.5,3.72496]
[1739653043895,0.7984,2684.8,2684.5,3.72496]
[1739653044202,5.1808,2685.1,2684.7,3.7247]
[1739653044402,5.1808,2685.1,2684.8,3.72464]
[1739653045205,0.7984,2685.3,2685.0,3.72431]
[1739653045405,0.7984,2685.5,2685.2,3.72407]
[1739653045608,0.7984,2685.7,2685.2,3.72401]
[1739653045902,1.805989,2685.7,2685.2,3.72401]
[1739653046106,0.3734,2685.8,2685.4,3.72372]
[1739653046303,0.3734,2685.8,2685.5,5.14095856]
[1739653046725,5.1808,2685.9,2685.5,5.14095856]
[1739653046901,5.1808,2685.9,2685.5,5.89435856]
[1739653047100,5.1808,2685.9,2685.6,3.72347]
[1739653048924,0.7984,2686.0,2685.6,3.72347]
[1739653048925,0.7984,2686.3,2685.7,0.03723172]
[1739653049121,0.7984,2686.3,2685.8,3.72318]
[1739653052706,0.7984,2686.3,2685.9,0.03722763]
[1739653053106,0.7984,2686.3,2685.8,3.72318]
[1739653053690,5.9792,2686.3,2685.8,3.72318]
[1739653053885,5.9792,2686.3,2685.9,0.03722764]
[1739653054616,5.1808,2686.3,2686.0,3.72297]
[1739653055508,5.1808,2686.3,2686.2,3.72273]
[1739653055715,5.1808,2686.3,2686.1,3.72286]
[1739653056220,5.1808,2686.3,2686.0,3.72298]
[1739653056514,5.1808,2686.3,2685.9,0.7935]
[1739653057073,5.1808,2686.3,2685.6,7.34806346]
[1739653057279,5.1808,2686.3,2685.8,3.72327]
[1739653058726,5.1808,2686.3,2685.7,0.80998529]
[1739653058727,3.72278,2686.2,2685.7,0.80998529]
[1739653058906,3.72278,2686.2,2685.6,7.34804346]
[1739653059686,8.90358,2686.2,2685.6,11.07152346]
[1739653060018,8.90358,2686.2,2685.7,3.72342]
[1739653060526,3.72288,2686.1,2685.6,3.62457346]
[1739653060822,0.815,2686.0,2685.7,3.72342]
[1739653061126,5.1808,2686.2,2685.7,3.72342]
[1739653061284,5.1808,2686.2,2685.6,2.83107346]
[1739653061285,5.9958,2686.2,2685.8,3.72327]
[1739653061485,5.9958,2686.2,2685.6,6.55449346]
[1739653061917,5.9958,2686.2,2685.6,2.83107346]
[1739653062116,8.2348,2686.2,2685.7,3.72342]
[1739653062330,9.71854,2686.2,2685.7,3.72342]
[1739653063924,3.72289,2686.1,2685.6,2.83107346]
[1739653064221,5.9958,2686.2,2685.8,3.72328]
[1739653064422,5.9958,2686.2,2685.8,4.55400919]
[1739653064423,5.1808,2686.2,2685.8,4.55400919]
[1739653064598,5.1808,2686.2,2685.8,4.51678]
[1739653065343,5.1808,2686.2,2685.9,3.72311]
[1739653065832,5.1808,2686.2,2685.9,7.44618]
[1739653066033,5.1808,2686.2,2686.0,3.723]
[1739653069742,5.1808,2686.2,2685.9,4.55083092]
[1739653070038,5.1808,2686.2,2685.9,0.82769092]
[1739653070241,5.1808,2686.2,2686.0,3.72299]
[1739653071710,5.1808,2686.2,2686.1,1.41502262]
[1739653073946,5.1808,2686.2,2686.1,5.13788262]
[1739653075017,0.815,2686.4,2686.1,5.13788262]
[1739653075619,4.53752,2686.4,2686.1,1.41502262]
[1739653075821,4.99506264,2686.4,2685.9,1.41502262]
[1739653076121,3.72266,2686.3,2685.9,1.41502262]
[1739653076516,0.815,2686.4,2685.9,5.13806262]